[Event "Titled Tuesday Blitz January 17 Late 2023"]
[White "Atanasov, Anthony"]
[Black "Paravyan, David"]
[WhiteFideId "2623897"]
[BlackFideId "4194985"]
[WhiteElo "2368"]
[BlackElo "2601"]
[Result "0-1"]
[Round "02"]
[TimeControl "180+2"]
[Date "2023.01.17"]
[WhiteClock "0:00:04"]
[BlackClock "0:01:04"]

1. Nf3 {[%clk 0:03:00]}  Nf6 {[%clk 0:02:57]} 2. d4 {[%clk 0:03:00]}  g6 {[%clk 0:02:57]} 3. c4 {[%clk 0:03:00]}  Bg7 {[%clk 0:02:57]} 4. Nc3 {[%clk 0:03:00]}  d5 {[%clk 0:02:57]} 5. cxd5 {[%clk 0:02:41]}  Nxd5 {[%clk 0:02:58]} 6. Bd2 {[%clk 0:02:41]}  c5 {[%clk 0:02:56]} 7. e4 {[%clk 0:02:22]}  Nxc3 {[%clk 0:02:55]} 8. Bxc3 {[%clk 0:02:23]}  cxd4 {[%clk 0:02:55]} 9. Bxd4 {[%clk 0:02:24]}  Qa5+ {[%clk 0:02:52]} 10. Qd2 {[%clk 0:02:18]}  Qxd2+ {[%clk 0:02:52]} 11. Kxd2 {[%clk 0:02:19]}  Bxd4 {[%clk 0:02:53]} 12. Nxd4 {[%clk 0:02:20]}  O-O {[%clk 0:02:52]} 13. f4 {[%clk 0:02:12]}  Bd7 {[%clk 0:02:51]} 14. Ke3 {[%clk 0:02:07]}  Nc6 {[%clk 0:02:50]} 15. Rd1 {[%clk 0:01:58]}  e5 {[%clk 0:02:48]} 16. Nxc6 {[%clk 0:01:51]}  exf4+ {[%clk 0:02:45]} 17. Kxf4 {[%clk 0:01:52]}  Bxc6 {[%clk 0:02:45]} 18. Bc4 {[%clk 0:01:52]}  Rae8 {[%clk 0:02:41]} 19. Bd5 {[%clk 0:01:42]}  Kg7 {[%clk 0:02:40]} 20. Bxc6 {[%clk 0:01:42]}  bxc6 {[%clk 0:02:41]} 21. Rd7 {[%clk 0:01:42]}  a5 {[%clk 0:02:39]} 22. Rc1 {[%clk 0:01:36]}  Re6 {[%clk 0:02:36]} 23. Rc5 {[%clk 0:01:34]}  Rb8 {[%clk 0:02:32]} 24. b3 {[%clk 0:01:30]}  a4 {[%clk 0:02:23]} 25. bxa4 {[%clk 0:01:30]}  Rb4 {[%clk 0:02:23]} 26. a5 {[%clk 0:00:54]}  Rbxe4+ {[%clk 0:02:23]} 27. Kf3 {[%clk 0:00:54]}  Re3+ {[%clk 0:02:23]} 28. Kf2 {[%clk 0:00:50]}  Re2+ {[%clk 0:02:24]} 29. Kf3 {[%clk 0:00:47]}  Rxa2 {[%clk 0:02:23]} 30. Rc7 {[%clk 0:00:15]}  Rf6+ {[%clk 0:02:23]} 31. Kg3 {[%clk 0:00:12]}  Ra3+ {[%clk 0:02:18]} 32. Kh4 {[%clk 0:00:10]}  Rf4+ {[%clk 0:02:13]} 33. g4 {[%clk 0:00:10]}  h5 {[%clk 0:02:05]} 34. h3 {[%clk 0:00:10]}  Rff3 {[%clk 0:01:32]} 35. Kg5 {[%clk 0:00:10]}  Rxh3 {[%clk 0:01:16]} 36. R7xc6 {[%clk 0:00:10]}  Rhg3 {[%clk 0:01:09]} 37. Kf4 {[%clk 0:00:06]}  Rxg4+ {[%clk 0:01:09]} 38. Ke5 {[%clk 0:00:06]}  Rxa5 {[%clk 0:01:04]} 39. Rxa5 {[%clk 0:00:03]}  Rg5+ {[%clk 0:01:04]} 40. Kf4 {[%clk 0:00:04]} 0-1


[Site "https://www.chess.com"]

[Event "Titled Tuesday Blitz January 17 Late 2023"]
[White "Bluebaum, Matthias"]
[Black "Yedidia, Daniel"]
[WhiteFideId "24651516"]
[BlackFideId "30905907"]
[WhiteElo "2669"]
[BlackElo "2041"]
[Result "1-0"]
[Round "02"]
[TimeControl "180+2"]
[Date "2023.01.17"]
[WhiteClock "0:00:08"]
[BlackClock "0:00:02"]

1. d4 {[%clk 0:03:00]}  Nf6 {[%clk 0:02:59]} 2. c4 {[%clk 0:03:01]}  e6 {[%clk 0:02:59]} 3. Nc3 {[%clk 0:03:02]}  Bb4 {[%clk 0:03:00]} 4. e3 {[%clk 0:03:02]}  O-O {[%clk 0:02:59]} 5. Bd2 {[%clk 0:03:03]}  c5 {[%clk 0:02:57]} 6. a3 {[%clk 0:03:03]}  cxd4 {[%clk 0:02:56]} 7. axb4 {[%clk 0:03:02]}  dxc3 {[%clk 0:02:56]} 8. Bxc3 {[%clk 0:03:02]}  b6 {[%clk 0:02:52]} 9. Bd3 {[%clk 0:03:00]}  Bb7 {[%clk 0:02:52]} 10. Nf3 {[%clk 0:03:01]}  d5 {[%clk 0:02:51]} 11. b3 {[%clk 0:03:01]}  Nbd7 {[%clk 0:02:48]} 12. O-O {[%clk 0:03:01]}  Qe7 {[%clk 0:02:43]} 13. Qe2 {[%clk 0:02:59]}  Rfd8 {[%clk 0:02:43]} 14. Rfd1 {[%clk 0:02:58]}  h6 {[%clk 0:02:40]} 15. h3 {[%clk 0:02:58]}  Ne4 {[%clk 0:02:35]} 16. Bb2 {[%clk 0:02:58]}  Ndf6 {[%clk 0:02:32]} 17. Ne5 {[%clk 0:02:54]}  Qxb4 {[%clk 0:02:29]} 18. Bc2 {[%clk 0:02:13]}  dxc4 {[%clk 0:02:15]} 19. Nxc4 {[%clk 0:02:09]}  Rxd1+ {[%clk 0:01:36]} 20. Qxd1 {[%clk 0:02:09]}  Qc5 {[%clk 0:01:33]} 21. Qd3 {[%clk 0:01:27]}  Qg5 {[%clk 0:01:20]} 22. f3 {[%clk 0:01:26]}  Nc5 {[%clk 0:01:20]} 23. Qe2 {[%clk 0:01:21]}  Nd5 {[%clk 0:01:07]} 24. f4 {[%clk 0:01:11]}  Qg3 {[%clk 0:01:03]} 25. Rf1 {[%clk 0:00:53]}  Nb4 {[%clk 0:00:55]} 26. Bb1 {[%clk 0:00:51]}  Rd8 {[%clk 0:00:51]} 27. Ne5 {[%clk 0:00:43]}  Nxb3 {[%clk 0:00:47]} 28. Bc3 {[%clk 0:00:40]}  Ba6 {[%clk 0:00:36]} 29. Qh5 {[%clk 0:00:27]}  g6 {[%clk 0:00:12]} 30. Bxg6 {[%clk 0:00:27]}  fxg6 {[%clk 0:00:12]} 31. Nxg6 {[%clk 0:00:14]}  Rd7 {[%clk 0:00:10]} 32. Qxh6 {[%clk 0:00:13]}  Bxf1 {[%clk 0:00:04]} 33. Qh8+ {[%clk 0:00:09]}  Kf7 {[%clk 0:00:05]} 34. Qf6+ {[%clk 0:00:10]}  Kg8 {[%clk 0:00:04]} 35. Qh8+ {[%clk 0:00:09]}  Kf7 {[%clk 0:00:04]} 36. Ne5+ {[%clk 0:00:10]}  Ke7 {[%clk 0:00:04]} 37. Qh7+ {[%clk 0:00:10]}  Kd6 {[%clk 0:00:04]} 38. Qxd7+ {[%clk 0:00:11]}  Kc5 {[%clk 0:00:04]} 39. Qe7+ {[%clk 0:00:08]}  Kb5 {[%clk 0:00:04]} 40. Qxb4+ {[%clk 0:00:08]}  Ka6 {[%clk 0:00:04]} 41. Kxf1 {[%clk 0:00:07]}  Qxe3 {[%clk 0:00:03]} 42. Qxb3 {[%clk 0:00:07]}  Qxf4+ {[%clk 0:00:02]} 43. Nf3 {[%clk 0:00:08]} 1-0


[Site "https://www.chess.com"]

[Event "Titled Tuesday Blitz January 17 Late 2023"]
[White "Kavutskiy, Konstantin"]
[Black "Chigaev, Maksim"]
[WhiteFideId "2026384"]
[BlackFideId "4108116"]
[WhiteElo "2414"]
[BlackElo "2628"]
[Result "0-1"]
[Round "02"]
[TimeControl "180+2"]
[Date "2023.01.17"]
[WhiteClock "0:00:13"]
[BlackClock "0:01:11"]

1. d4 {[%clk 0:03:00]}  Nf6 {[%clk 0:02:59]} 2. Bg5 {[%clk 0:03:00]}  g6 {[%clk 0:02:58]} 3. Bxf6 {[%clk 0:03:00]}  exf6 {[%clk 0:02:59]} 4. c4 {[%clk 0:02:59]}  d5 {[%clk 0:02:58]} 5. cxd5 {[%clk 0:02:59]}  Qxd5 {[%clk 0:02:59]} 6. Nc3 {[%clk 0:02:59]}  Bb4 {[%clk 0:03:00]} 7. e3 {[%clk 0:02:57]}  c5 {[%clk 0:02:48]} 8. Qa4+ {[%clk 0:02:44]}  Nc6 {[%clk 0:02:48]} 9. Qxb4 {[%clk 0:02:42]}  Nxb4 {[%clk 0:02:49]} 10. Nxd5 {[%clk 0:02:41]}  Nxd5 {[%clk 0:02:48]} 11. dxc5 {[%clk 0:02:41]}  Be6 {[%clk 0:02:46]} 12. Bb5+ {[%clk 0:02:36]}  Ke7 {[%clk 0:02:46]} 13. Ne2 {[%clk 0:02:34]}  Rac8 {[%clk 0:02:35]} 14. Rc1 {[%clk 0:02:29]}  a6 {[%clk 0:02:35]} 15. Bc4 {[%clk 0:01:58]}  Rxc5 {[%clk 0:02:32]} 16. O-O {[%clk 0:01:57]}  Rhc8 {[%clk 0:02:25]} 17. Bxd5 {[%clk 0:01:50]}  Rxc1 {[%clk 0:02:24]} 18. Rxc1 {[%clk 0:01:48]}  Rxc1+ {[%clk 0:02:25]} 19. Nxc1 {[%clk 0:01:49]}  Bxd5 {[%clk 0:02:25]} 20. f3 {[%clk 0:01:44]}  f5 {[%clk 0:02:16]} 21. Kf2 {[%clk 0:01:43]}  Kd6 {[%clk 0:02:16]} 22. g3 {[%clk 0:01:35]}  Kc5 {[%clk 0:02:16]} 23. f4 {[%clk 0:01:33]}  Bc4 {[%clk 0:02:10]} 24. Ke1 {[%clk 0:01:29]}  Kd5 {[%clk 0:02:06]} 25. b3 {[%clk 0:01:19]}  Bb5 {[%clk 0:02:06]} 26. a4 {[%clk 0:01:19]}  Bc6 {[%clk 0:01:51]} 27. Ke2 {[%clk 0:01:13]}  b5 {[%clk 0:01:50]} 28. a5 {[%clk 0:00:32]}  b4 {[%clk 0:01:47]} 29. Na2 {[%clk 0:00:31]}  Kc5 {[%clk 0:01:40]} 30. Kd3 {[%clk 0:00:31]}  Be4+ {[%clk 0:01:40]} 31. Kd2 {[%clk 0:00:30]}  Kb5 {[%clk 0:01:40]} 32. Nc1 {[%clk 0:00:27]}  Kxa5 {[%clk 0:01:39]} 33. Ne2 {[%clk 0:00:27]}  Kb5 {[%clk 0:01:38]} 34. Nd4+ {[%clk 0:00:26]}  Kc5 {[%clk 0:01:38]} 35. h4 {[%clk 0:00:23]}  a5 {[%clk 0:01:38]} 36. h5 {[%clk 0:00:18]}  gxh5 {[%clk 0:01:38]} 37. Ne2 {[%clk 0:00:17]}  Bc6 {[%clk 0:01:18]} 38. Nd4 {[%clk 0:00:17]}  Bd7 {[%clk 0:01:19]} 39. Ne2 {[%clk 0:00:17]}  Kd5 {[%clk 0:01:18]} 40. Ng1 {[%clk 0:00:16]}  Ke4 {[%clk 0:01:18]} 41. Nh3 {[%clk 0:00:13]}  h6 {[%clk 0:01:14]} 42. Ng1 {[%clk 0:00:13]}  Bb5 {[%clk 0:01:11]} 0-1


[Site "https://www.chess.com"]

[Event "Titled Tuesday Blitz January 17 Late 2023"]
[White "Eljanov, Pavel"]
[Black "Rosen, Eric"]
[WhiteFideId "14102951"]
[BlackFideId "2032562"]
[WhiteElo "2705"]
[BlackElo "2349"]
[Result "1-0"]
[Round "02"]
[TimeControl "180+2"]
[Date "2023.01.17"]
[WhiteClock "0:02:18"]
[BlackClock "0:01:14"]

1. d4 {[%clk 0:03:00]}  d5 {[%clk 0:03:00]} 2. c4 {[%clk 0:03:00]}  e6 {[%clk 0:03:00]} 3. Nc3 {[%clk 0:03:00]}  Nf6 {[%clk 0:03:01]} 4. cxd5 {[%clk 0:03:00]}  exd5 {[%clk 0:03:01]} 5. Bg5 {[%clk 0:03:00]}  c6 {[%clk 0:03:01]} 6. e3 {[%clk 0:03:00]}  Bd6 {[%clk 0:03:02]} 7. Bd3 {[%clk 0:02:58]}  h6 {[%clk 0:03:02]} 8. Bh4 {[%clk 0:02:57]}  O-O {[%clk 0:03:02]} 9. Nf3 {[%clk 0:02:57]}  Be6 {[%clk 0:02:59]} 10. Ne5 {[%clk 0:02:47]}  c5 {[%clk 0:02:59]} 11. O-O {[%clk 0:02:46]}  Nc6 {[%clk 0:02:58]} 12. Nxc6 {[%clk 0:02:44]}  bxc6 {[%clk 0:02:58]} 13. dxc5 {[%clk 0:02:44]}  Bxc5 {[%clk 0:02:57]} 14. Rc1 {[%clk 0:02:38]}  Be7 {[%clk 0:02:55]} 15. Na4 {[%clk 0:02:34]}  Rc8 {[%clk 0:02:14]} 16. Nc5 {[%clk 0:02:33]}  Bg4 {[%clk 0:02:12]} 17. Qa4 {[%clk 0:02:29]}  Qb6 {[%clk 0:02:07]} 18. Bxf6 {[%clk 0:02:25]}  Bxf6 {[%clk 0:01:40]} 19. Qxg4 {[%clk 0:02:25]}  Qxb2 {[%clk 0:01:40]} 20. Nd7 {[%clk 0:02:18]}  Rfd8 {[%clk 0:01:40]} 21. Qf5 {[%clk 0:02:18]}  g6 {[%clk 0:01:14]} 22. Qxf6 {[%clk 0:02:18]} 1-0


[Site "https://www.chess.com"]

[Event "Titled Tuesday Blitz January 17 Late 2023"]
[White "Jobava, Baadur"]
[Black "Carnicelli, Valerio"]
[WhiteFideId "13601520"]
[BlackFideId "856185"]
[WhiteElo "2578"]
[BlackElo "2370"]
[Result "1-0"]
[Round "02"]
[TimeControl "180+2"]
[Date "2023.01.17"]
[WhiteClock "0:00:28"]
[BlackClock "0:00:03"]

1. d4 {[%clk 0:03:00]}  Nf6 {[%clk 0:01:32]} 2. Nc3 {[%clk 0:03:01]}  g6 {[%clk 0:01:31]} 3. e4 {[%clk 0:01:32]}  d6 {[%clk 0:01:31]} 4. Be2 {[%clk 0:01:32]}  Bg7 {[%clk 0:01:31]} 5. h4 {[%clk 0:01:33]}  h5 {[%clk 0:01:31]} 6. Nf3 {[%clk 0:01:32]}  c6 {[%clk 0:01:30]} 7. Bg5 {[%clk 0:01:32]}  Qa5 {[%clk 0:01:26]} 8. O-O {[%clk 0:01:31]}  Nbd7 {[%clk 0:01:22]} 9. Re1 {[%clk 0:01:31]}  Nh7 {[%clk 0:01:14]} 10. Bd2 {[%clk 0:01:27]}  Qb6 {[%clk 0:01:13]} 11. a4 {[%clk 0:01:19]}  a5 {[%clk 0:01:11]} 12. e5 {[%clk 0:01:12]}  dxe5 {[%clk 0:01:03]} 13. dxe5 {[%clk 0:01:13]}  Nxe5 {[%clk 0:01:01]} 14. Nxe5 {[%clk 0:01:13]}  Bxe5 {[%clk 0:01:02]} 15. Bc4 {[%clk 0:01:13]}  Bd4 {[%clk 0:00:51]} 16. Qf3 {[%clk 0:01:13]}  O-O {[%clk 0:00:47]} 17. Rxe7 {[%clk 0:01:06]}  Nf6 {[%clk 0:00:44]} 18. Ne4 {[%clk 0:00:38]}  Bf5 {[%clk 0:00:35]} 19. Nd6 {[%clk 0:00:33]}  Bg4 {[%clk 0:00:32]} 20. Qd3 {[%clk 0:00:30]}  Kh8 {[%clk 0:00:06]} 21. Nxf7+ {[%clk 0:00:29]}  Rxf7 {[%clk 0:00:06]} 22. Rxf7 {[%clk 0:00:30]}  Bxf2+ {[%clk 0:00:06]} 23. Kh1 {[%clk 0:00:30]}  Bxh4 {[%clk 0:00:03]} 24. Qxg6 {[%clk 0:00:28]} 1-0


[Site "https://www.chess.com"]

[Event "Titled Tuesday Blitz January 17 Late 2023"]
[White "Lymar, Vladislav"]
[Black "Dardha, Daniel"]
[WhiteFideId "14162180"]
[BlackFideId "240990"]
[WhiteElo "2119"]
[BlackElo "2631"]
[Result "1-0"]
[Round "02"]
[TimeControl "180+2"]
[Date "2023.01.17"]
[WhiteClock "0:00:08"]
[BlackClock "0:00:11"]

1. e4 {[%clk 0:02:59]}  e5 {[%clk 0:02:58]} 2. Nf3 {[%clk 0:02:59]}  Nc6 {[%clk 0:02:58]} 3. g3 {[%clk 0:02:58]}  d5 {[%clk 0:02:53]} 4. exd5 {[%clk 0:02:54]}  Qxd5 {[%clk 0:02:54]} 5. Nc3 {[%clk 0:02:53]}  Qd6 {[%clk 0:02:54]} 6. Bg2 {[%clk 0:02:52]}  Nf6 {[%clk 0:02:54]} 7. O-O {[%clk 0:02:52]}  Bg4 {[%clk 0:02:55]} 8. h3 {[%clk 0:02:45]}  Bh5 {[%clk 0:02:55]} 9. g4 {[%clk 0:02:40]}  Bg6 {[%clk 0:02:53]} 10. d4 {[%clk 0:02:40]}  O-O-O {[%clk 0:02:30]} 11. dxe5 {[%clk 0:02:21]}  Nxe5 {[%clk 0:02:29]} 12. Qe2 {[%clk 0:02:08]}  Nxf3+ {[%clk 0:02:14]} 13. Qxf3 {[%clk 0:02:06]}  c6 {[%clk 0:02:14]} 14. Rd1 {[%clk 0:01:45]}  Qc7 {[%clk 0:02:12]} 15. Bf4 {[%clk 0:01:46]}  Qb6 {[%clk 0:01:48]} 16. Rxd8+ {[%clk 0:01:38]}  Qxd8 {[%clk 0:01:49]} 17. Rd1 {[%clk 0:01:35]}  Qe8 {[%clk 0:01:42]} 18. Nb5 {[%clk 0:01:26]}  Bc5 {[%clk 0:01:33]} 19. b4 {[%clk 0:01:19]}  Be4 {[%clk 0:01:19]} 20. bxc5 {[%clk 0:01:07]}  cxb5 {[%clk 0:01:18]} 21. Qa3 {[%clk 0:00:39]}  a6 {[%clk 0:01:04]} 22. Qa5 {[%clk 0:00:37]}  Qc6 {[%clk 0:01:05]} 23. Rd6 {[%clk 0:00:25]}  Qxc5 {[%clk 0:00:59]} 24. Rxf6 {[%clk 0:00:18]}  gxf6 {[%clk 0:00:16]} 25. Bxe4 {[%clk 0:00:18]}  Re8 {[%clk 0:00:09]} 26. Bf5+ {[%clk 0:00:18]}  Re6 {[%clk 0:00:09]} 27. Qd2 {[%clk 0:00:12]}  Qc4 {[%clk 0:00:05]} 28. Bxe6+ {[%clk 0:00:11]}  fxe6 {[%clk 0:00:04]} 29. a3 {[%clk 0:00:11]}  e5 {[%clk 0:00:04]} 30. Be3 {[%clk 0:00:11]}  Qe4 {[%clk 0:00:05]} 31. Qd6 {[%clk 0:00:08]}  Qxc2 {[%clk 0:00:01]} 32. Bb6 {[%clk 0:00:09]}  Qc1+ {[%clk 0:00:01]} 33. Kg2 {[%clk 0:00:07]}  Qc6+ {[%clk 0:00:01]} 34. Qxc6+ {[%clk 0:00:07]}  bxc6 {[%clk 0:00:02]} 35. Kf3 {[%clk 0:00:07]}  Kd7 {[%clk 0:00:03]} 36. Ke4 {[%clk 0:00:06]}  Kd6 {[%clk 0:00:03]} 37. Kf5 {[%clk 0:00:04]}  c5 {[%clk 0:00:04]} 38. Kxf6 {[%clk 0:00:04]}  b4 {[%clk 0:00:02]} 39. axb4 {[%clk 0:00:03]}  cxb4 {[%clk 0:00:03]} 40. Ba5 {[%clk 0:00:04]}  b3 {[%clk 0:00:02]} 41. Bc3 {[%clk 0:00:04]}  e4 {[%clk 0:00:02]} 42. g5 {[%clk 0:00:03]}  a5 {[%clk 0:00:03]} 43. h4 {[%clk 0:00:02]}  a4 {[%clk 0:00:03]} 44. Bb2 {[%clk 0:00:03]}  Kc5 {[%clk 0:00:04]} 45. h5 {[%clk 0:00:03]}  Kb4 {[%clk 0:00:04]} 46. g6 {[%clk 0:00:03]}  hxg6 {[%clk 0:00:04]} 47. hxg6 {[%clk 0:00:04]}  a3 {[%clk 0:00:05]} 48. Bxa3+ {[%clk 0:00:04]}  Kxa3 {[%clk 0:00:06]} 49. g7 {[%clk 0:00:04]}  b2 {[%clk 0:00:06]} 50. g8=Q {[%clk 0:00:04]}  b1=Q {[%clk 0:00:06]} 51. Qa8+ {[%clk 0:00:05]}  Kb2 {[%clk 0:00:07]} 52. Qb7+ {[%clk 0:00:05]}  Kc1 {[%clk 0:00:07]} 53. Qxb1+ {[%clk 0:00:05]}  Kxb1 {[%clk 0:00:07]} 54. Ke5 {[%clk 0:00:06]}  Kc2 {[%clk 0:00:07]} 55. Kxe4 {[%clk 0:00:06]}  Kc3 {[%clk 0:00:08]} 56. f4 {[%clk 0:00:07]}  Kc4 {[%clk 0:00:09]} 57. Ke5 {[%clk 0:00:07]}  Kc5 {[%clk 0:00:10]} 58. f5 {[%clk 0:00:07]}  Kc6 {[%clk 0:00:11]} 59. Ke6 {[%clk 0:00:08]} 1-0


[Site "https://www.chess.com"]

[Event "Titled Tuesday Blitz January 17 Late 2023"]
[White "Zierk, Steven"]
[Black "Chor, Kevin"]
[WhiteFideId "2034255"]
[BlackFideId "2090740"]
[WhiteElo "2488"]
[BlackElo "1944"]
[Result "1-0"]
[Round "02"]
[TimeControl "180+2"]
[Date "2023.01.17"]
[WhiteClock "0:01:00"]
[BlackClock "0:00:11"]

1. e4 {[%clk 0:03:00]}  c5 {[%clk 0:02:59]} 2. Nf3 {[%clk 0:03:00]}  g6 {[%clk 0:02:58]} 3. d4 {[%clk 0:03:01]}  cxd4 {[%clk 0:02:59]} 4. Nxd4 {[%clk 0:03:01]}  Bg7 {[%clk 0:02:59]} 5. c4 {[%clk 0:03:01]}  Nc6 {[%clk 0:02:52]} 6. Be3 {[%clk 0:02:59]}  Nf6 {[%clk 0:02:52]} 7. Nc3 {[%clk 0:02:59]}  O-O {[%clk 0:02:46]} 8. Be2 {[%clk 0:02:57]}  d6 {[%clk 0:02:42]} 9. O-O {[%clk 0:02:53]}  Bd7 {[%clk 0:02:42]} 10. Rc1 {[%clk 0:02:52]}  Nxd4 {[%clk 0:02:38]} 11. Bxd4 {[%clk 0:02:52]}  Bc6 {[%clk 0:02:39]} 12. b4 {[%clk 0:02:39]}  e5 {[%clk 0:02:26]} 13. Be3 {[%clk 0:02:36]}  Nxe4 {[%clk 0:02:22]} 14. b5 {[%clk 0:02:31]}  Nxc3 {[%clk 0:02:21]} 15. Rxc3 {[%clk 0:02:32]}  Be4 {[%clk 0:02:04]} 16. Bd3 {[%clk 0:02:23]}  Bxd3 {[%clk 0:01:46]} 17. Rxd3 {[%clk 0:02:24]}  Qc7 {[%clk 0:01:47]} 18. c5 {[%clk 0:02:20]}  dxc5 {[%clk 0:01:45]} 19. Rd7 {[%clk 0:02:21]}  Qb6 {[%clk 0:01:44]} 20. Qd5 {[%clk 0:02:21]}  Rad8 {[%clk 0:01:35]} 21. Qxb7 {[%clk 0:02:04]}  Qxb7 {[%clk 0:01:20]} 22. Rxb7 {[%clk 0:02:04]}  Rb8 {[%clk 0:01:20]} 23. Rxb8 {[%clk 0:02:02]}  Rxb8 {[%clk 0:01:21]} 24. a4 {[%clk 0:02:02]}  Bf8 {[%clk 0:01:12]} 25. Rc1 {[%clk 0:01:55]}  f5 {[%clk 0:01:10]} 26. Bxc5 {[%clk 0:01:52]}  Rc8 {[%clk 0:01:06]} 27. Be3 {[%clk 0:01:52]}  Rxc1+ {[%clk 0:00:37]} 28. Bxc1 {[%clk 0:01:53]}  f4 {[%clk 0:00:37]} 29. Bb2 {[%clk 0:01:34]}  Bd6 {[%clk 0:00:36]} 30. a5 {[%clk 0:01:29]}  Kf7 {[%clk 0:00:26]} 31. b6 {[%clk 0:01:21]}  axb6 {[%clk 0:00:27]} 32. a6 {[%clk 0:01:21]}  Bb8 {[%clk 0:00:27]} 33. Bxe5 {[%clk 0:01:22]}  Ba7 {[%clk 0:00:26]} 34. Bxf4 {[%clk 0:01:22]}  Ke6 {[%clk 0:00:26]} 35. g4 {[%clk 0:01:21]}  Kd5 {[%clk 0:00:25]} 36. Be3 {[%clk 0:01:18]}  Kc6 {[%clk 0:00:25]} 37. f4 {[%clk 0:01:17]}  Kb5 {[%clk 0:00:22]} 38. f5 {[%clk 0:01:17]}  gxf5 {[%clk 0:00:23]} 39. gxf5 {[%clk 0:01:18]}  Kxa6 {[%clk 0:00:23]} 40. f6 {[%clk 0:01:17]}  Bb8 {[%clk 0:00:23]} 41. f7 {[%clk 0:01:17]}  Bd6 {[%clk 0:00:22]} 42. Bh6 {[%clk 0:01:17]}  Kb7 {[%clk 0:00:18]} 43. Kf2 {[%clk 0:01:15]}  Kc6 {[%clk 0:00:18]} 44. Kf3 {[%clk 0:01:09]}  Kd5 {[%clk 0:00:16]} 45. Kg4 {[%clk 0:01:07]}  b5 {[%clk 0:00:13]} 46. f8=Q {[%clk 0:01:07]}  Bxf8 {[%clk 0:00:13]} 47. Bxf8 {[%clk 0:01:08]}  Ke6 {[%clk 0:00:13]} 48. Kg5 {[%clk 0:01:07]}  Kf7 {[%clk 0:00:14]} 49. Bb4 {[%clk 0:01:08]}  Kg8 {[%clk 0:00:14]} 50. Kf6 {[%clk 0:01:03]}  Kh8 {[%clk 0:00:13]} 51. Kf7 {[%clk 0:01:00]}  h5 {[%clk 0:00:13]} 52. h4 {[%clk 0:00:59]}  Kh7 {[%clk 0:00:13]} 53. Bd2 {[%clk 0:00:59]}  Kh8 {[%clk 0:00:12]} 54. Kg6 {[%clk 0:01:00]}  Kg8 {[%clk 0:00:11]} 55. Kxh5 {[%clk 0:01:00]} 1-0


[Site "https://www.chess.com"]

[Event "Titled Tuesday Blitz January 17 Late 2023"]
[White "Ismagilov, Damir"]
[Black "Oparin, Grigoriy"]
[WhiteFideId "34199982"]
[BlackFideId "24125890"]
[WhiteElo "2156"]
[BlackElo "2667"]
[Result "0-1"]
[Round "02"]
[TimeControl "180+2"]
[Date "2023.01.17"]
[WhiteClock "0:00:01"]
[BlackClock "0:00:47"]

1. e4 {[%clk 0:03:00]}  c5 {[%clk 0:02:59]} 2. Nf3 {[%clk 0:02:59]}  Nc6 {[%clk 0:03:00]} 3. Bb5 {[%clk 0:02:59]}  d6 {[%clk 0:03:00]} 4. O-O {[%clk 0:02:58]}  Bd7 {[%clk 0:03:00]} 5. Re1 {[%clk 0:02:58]}  Nf6 {[%clk 0:03:00]} 6. c3 {[%clk 0:02:58]}  a6 {[%clk 0:02:57]} 7. Bf1 {[%clk 0:02:58]}  Bg4 {[%clk 0:02:53]} 8. d4 {[%clk 0:02:58]}  cxd4 {[%clk 0:02:53]} 9. cxd4 {[%clk 0:02:59]}  Bxf3 {[%clk 0:02:53]} 10. gxf3 {[%clk 0:03:00]}  e5 {[%clk 0:02:53]} 11. d5 {[%clk 0:02:58]}  Ne7 {[%clk 0:02:52]} 12. Kh1 {[%clk 0:02:38]}  Ng6 {[%clk 0:02:52]} 13. Nc3 {[%clk 0:02:32]}  Be7 {[%clk 0:02:52]} 14. Bg5 {[%clk 0:02:24]}  Nh5 {[%clk 0:02:48]} 15. Be3 {[%clk 0:02:18]}  O-O {[%clk 0:02:45]} 16. Rc1 {[%clk 0:02:02]}  Nhf4 {[%clk 0:02:41]} 17. Ne2 {[%clk 0:01:58]}  Nxe2 {[%clk 0:02:38]} 18. Qxe2 {[%clk 0:01:49]}  Bg5 {[%clk 0:02:38]} 19. Bh3 {[%clk 0:01:43]}  Bf4 {[%clk 0:02:36]} 20. Qf1 {[%clk 0:01:23]}  Nh4 {[%clk 0:02:14]} 21. Bg4 {[%clk 0:01:14]}  Qf6 {[%clk 0:02:07]} 22. Qh3 {[%clk 0:01:03]}  g6 {[%clk 0:01:57]} 23. Bxf4 {[%clk 0:01:00]}  exf4 {[%clk 0:01:57]} 24. Rc7 {[%clk 0:00:51]}  h5 {[%clk 0:01:50]} 25. Bd7 {[%clk 0:00:44]}  Rab8 {[%clk 0:01:44]} 26. Rec1 {[%clk 0:00:35]}  Rfd8 {[%clk 0:01:36]} 27. Ba4 {[%clk 0:00:31]}  g5 {[%clk 0:01:28]} 28. Bd7 {[%clk 0:00:28]}  Kg7 {[%clk 0:01:20]} 29. Be6 {[%clk 0:00:27]}  Rf8 {[%clk 0:01:21]} 30. Rg1 {[%clk 0:00:14]}  Kh6 {[%clk 0:01:20]} 31. Bf5 {[%clk 0:00:09]}  Rfe8 {[%clk 0:01:12]} 32. Rd7 {[%clk 0:00:10]}  Re7 {[%clk 0:01:08]} 33. Rxe7 {[%clk 0:00:08]}  Qxe7 {[%clk 0:01:09]} 34. Rc1 {[%clk 0:00:06]}  Qe5 {[%clk 0:00:59]} 35. Rc3 {[%clk 0:00:05]}  Re8 {[%clk 0:00:58]} 36. Qf1 {[%clk 0:00:04]}  Nxf5 {[%clk 0:00:56]} 37. exf5 {[%clk 0:00:05]}  Qxf5 {[%clk 0:00:54]} 38. Kg2 {[%clk 0:00:05]}  g4 {[%clk 0:00:52]} 39. Qd3 {[%clk 0:00:05]}  Qg5 {[%clk 0:00:48]} 40. Rc1 {[%clk 0:00:02]}  gxf3+ {[%clk 0:00:47]} 41. Kf1 {[%clk 0:00:01]}  Qg2# {[%clk 0:00:47]} 0-1


[Site "https://www.chess.com"]